bitfinex/quotes_SOLUSD_20251106
["timestamp","ask_amount","ask_price","bid_price","bid_amount"]
[1762456986605,7.9488357,157.22,157.16,8.6488357]
[1762456986952,7.9488357,157.2,157.15,7.54]
[1762456987224,7.9488357,157.22,157.17,7.9488357]
[1762456987597,7.9488357,157.2,157.17,0.7]
[1762456988116,7.9488357,157.2,157.17,7.06224681]
[1762456988314,7.9488357,157.21,157.17,7.06224681]
[1762456988512,7.9488357,157.2,157.17,7.06224681]
[1762456988818,17.73766339,157.23,157.18,16.1888357]
[1762456988991,15.4888357,157.24,157.19,8.6488357]
[1762456989197,7.9488357,157.2,157.17,0.7]
[1762456989398,7.9488357,157.19,157.15,0.7]
[1762456989696,7.9488357,157.19,157.15,7.06334712]
[1762456989913,7.9488357,157.2,157.15,15.01218282]
[1762456990114,7.9488357,157.2,157.17,6.36253737]
[1762456990301,7.9488357,157.2,157.16,7.06280942]
[1762456990505,7.9488357,157.17,157.12,7.06441667]
[1762456990699,7.9488357,157.16,157.12,14.60441667]
[1762456990899,7.9488357,157.13,157.08,8.6488357]
[1762456991107,7.9488357,157.12,157.09,7.54]
[1762456991391,7.9488357,157.14,157.09,16.1888357]
[1762456991598,7.9488357,157.14,157.1,0.7]
[1762456991897,7.9488357,157.12,157.09,7.54]
[1762456992119,7.9488357,157.11,157.09,13.90577688]
[1762456992318,7.9488357,157.12,157.09,13.90577688]
[1762456992594,7.9488357,157.1,157.09,7.54]
[1762456993000,8.5388357,157.1,157.07,0.2]
[1762456993227,7.9488357,157.09,157.07,0.2]
[1762456993747,8.5388357,157.08,157.07,0.2]
[1762456993913,25.86766339,157.08,157.07,0.2]
[1762456994114,32.23384622,157.08,157.07,0.2]
[1762456995620,25.27766339,157.08,157.07,0.2]
[1762456995922,31.64384622,157.08,157.07,0.2]
[1762456996428,32.23384622,157.08,157.07,0.2]
[1762456998227,31.64384622,157.08,157.07,0.2]
[1762456998622,25.27766339,157.08,157.07,0.2]
[1762457000110,9.78882769,157.09,157.07,0.2]
[1762457000309,7.9488357,157.08,157.07,0.2]
[1762457001147,14.31501853,157.08,157.07,0.2]
[1762457001323,24.10384622,157.08,157.07,0.2]
[1762457001913,24.69384622,157.08,157.07,0.2]
[1762457002730,17.73766339,157.08,157.07,0.2]
[1762457002937,15.4888357,157.09,157.07,0.2]
[1762457003240,7.9488357,157.08,157.07,0.2]
[1762457004633,118.3888357,157.09,157.07,0.88]
[1762457004839,118.3888357,157.09,157.07,0.2]
[1762457005039,7.9488357,157.08,157.07,0.2]
[1762457006339,117.39581417,157.09,157.07,0.2]
[1762457006340,110.44,157.09,157.07,0.2]
[1762457006521,7.9488357,157.08,157.07,0.2]
[1762457006938,110.44,157.09,157.07,0.2]
[1762457007138,7.9488357,157.08,157.07,0.2]
[1762457008343,110.44,157.09,157.07,0.2]
[1762457008548,102.9,157.09,157.07,7.24658814]
[1762457008729,102.9,157.09,157.08,7.9488357]
[1762457008926,14.31259797,157.14,157.08,7.9488357]
[1762457008927,7.9488357,157.14,157.08,8.6288357]
[1762457009131,7.9488357,157.14,157.09,8.6288357]
[1762457009335,7.9488357,157.13,157.09,0.68]
[1762457009558,7.9488357,157.13,157.1,0.68]
[1762457010452,7.9488357,157.13,157.1,7.04534229]
[1762457011035,102.9,157.15,157.11,8.6288357]
[1762457011426,7.9488357,157.16,157.12,0.68]
[1762457011724,7.9488357,157.15,157.12,0.68]
[1762457012338,7.9488357,157.14,157.12,0.68]
[1762457012733,7.9488357,157.15,157.12,0.68]
[1762457013258,15.4888357,157.17,157.12,7.04452363]
[1762457013752,7.54,157.17,157.13,0.68]
[1762457014044,7.9488357,157.17,157.13,0.68]
[1762457014753,110.8488357,157.17,157.13,7.0438016]
[1762457014948,110.8488357,157.17,157.14,0.68]
[1762457015151,102.9,157.17,157.14,0.68]
[1762457015539,15.4888357,157.19,157.14,8.6288357]
[1762457016045,7.9488357,157.18,157.15,0.68]
[1762457016654,7.9488357,157.17,157.13,30.49419426]
[1762457016857,7.9488357,157.17,157.14,0.68]
[1762457017230,17.73766339,157.18,157.14,0.68]
[1762457017556,7.9488357,157.17,157.14,0.68]
[1762457018758,7.9488357,157.17,157.14,7.04356776]
[1762457018956,7.9488357,157.17,157.14,0.68]
[1762457019155,7.9488357,157.16,157.13,13.90400866]
[1762457019362,7.9488357,157.16,157.13,14.56400866]
[1762457019547,7.9488357,157.16,157.14,0.66]
[1762457020232,7.9488357,157.16,157.13,13.90400866]
[1762457020429,7.9488357,157.16,157.13,14.56400866]
[1762457020669,7.9488357,157.16,157.13,13.90400866]
[1762457020867,7.9488357,157.16,157.14,0.66]
[1762457021050,7.9488357,157.15,157.13,7.54]
[1762457021248,7.9488357,157.15,157.13,14.56405113]
[1762457021445,7.9488357,157.16,157.14,0.66]
[1762457021672,14.31177792,157.16,157.13,8.2]
[1762457021959,7.9488357,157.15,157.13,8.2]
[1762457022130,7.9488357,157.15,157.13,14.56411833]
[1762457022335,5.05829436,157.15,157.13,14.56411833]
[1762457023943,5.05829436,157.15,157.13,7.02411833]
[1762457025065,5.05829436,157.16,157.13,7.02411833]
[1762457025845,102.9,157.17,157.14,8.2]
[1762457026254,102.9,157.17,157.15,0.66]
[1762457027367,102.9,157.17,157.15,7.02307374]
[1762457028067,102.9,157.17,157.16,0.66]
[1762457028667,102.9,157.17,157.15,6.36307374]
[1762457028855,102.9,157.17,157.15,7.02307374]
[1762457029251,107.95829436,157.17,157.14,13.90361551]
[1762457029458,107.95829436,157.17,157.14,14.56361551]
[1762457030352,107.95829436,157.17,157.14,7.02361551]
[1762457031074,102.9,157.17,157.14,7.02361551]
[1762457031258,107.95829436,157.17,157.14,7.02361551]
[1762457032074,107.95829436,157.17,157.14,14.56361551]
[1762457032859,107.95829436,157.17,157.15,0.67]
[1762457033061,107.95829436,157.17,157.14,14.57361551]
[1762457033256,107.95829436,157.17,157.15,0.67]
[1762457034580,2.15717226,157.18,157.16,7.54]
[1762457034753,2.15717226,157.18,157.17,0.67]
[1762457035275,2.15717226,157.18,157.16,13.90257041]
[1762457035457,2.15717226,157.18,157.16,12.40257041]
[1762457036174,2.15717226,157.18,157.16,13.07257041]
[1762457036706,2.15717226,157.18,157.17,0.67]
[1762457037875,2.15717226,157.18,157.16,13.07257041]
[1762457038675,2.15717226,157.18,157.16,6.04]
[1762457038874,9.10944255,157.18,157.16,6.04]
[1762457039079,9.10944255,157.18,157.14,14.57366507]
[1762457039256,2.15717226,157.16,157.14,14.57366507]
[1762457039455,2.15717226,157.16,157.14,7.54]
[1762457039760,2.15717226,157.16,157.14,0.67]
[1762457039956,2.15717226,157.16,157.12,14.55440455]
[1762457040151,2.15717226,157.16,157.13,0.67]
[1762457040347,102.9,157.17,157.13,0.67]
[1762457040767,105.05717226,157.17,157.13,0.67]
[1762457041870,105.05717226,157.17,157.14,6.36375206]
[1762457042181,105.05717226,157.17,157.15,7.52]
[1762457042581,2.15717226,157.16,157.15,7.52]
[1762457042883,2.15717226,157.16,157.13,14.55400774]
[1762457043375,2.15717226,157.16,157.14,0.67]
[1762457044085,2.15717226,157.16,157.13,14.55400774]
[1762457044476,105.05717226,157.17,157.14,0.67]
[1762457044988,102.9,157.17,157.14,0.67]
[1762457045874,102.9,157.17,157.15,6.36334712]
[1762457046377,102.9,157.17,157.15,7.03334712]
[1762457046782,105.05717226,157.17,157.15,0.67]
[1762457047001,2.15717226,157.16,157.13,13.88402846]
[1762457047565,2.15717226,157.16,157.14,0.67]
[1762457048093,2.15717226,157.16,157.14,7.03363125]
[1762457048293,2.15717226,157.16,157.14,0.67]
[1762457048761,2.74717226,157.15,157.13,7.52]
[1762457048966,2.15717226,157.14,157.13,7.52]
[1762457049366,2.15717226,157.15,157.13,13.88415706]
[1762457049563,2.15717226,157.16,157.13,13.88415706]
[1762457050087,2.74717226,157.21,157.14,0.67]
[1762457050267,2.15717226,157.24,157.18,20.592]
[1762457050474,6.35849176,157.27,157.2,2.15717226]
[1762457050775,2.15717226,157.25,157.19,10.34717226]
[1762457050982,2.15717226,157.25,157.2,0.67]
[1762457051379,6.94849176,157.27,157.18,22.74917226]
[1762457051380,2.15717226,157.21,157.18,7.52]
[1762457051586,2.15717226,157.2,157.18,7.52]
[1762457051779,2.15717226,157.21,157.18,0.67]
[1762457052467,7.52,157.23,157.18,7.03200178]
[1762457052684,2.15717226,157.2,157.17,13.88253133]
[1762457052884,2.15717226,157.18,157.15,7.52]
[1762457053083,2.15717226,157.17,157.15,7.52]
[1762457053276,2.15717226,157.2,157.16,0.67]
[1762457053686,2.15717226,157.19,157.16,0.67]
[1762457053993,2.15717226,157.2,157.16,0.67]
[1762457054694,2.15717226,157.19,157.16,7.03284634]
[1762457055086,2.15717226,157.19,157.17,0.67]
[1762457055398,8.51850396,157.2,157.17,0.67]
[1762457055898,2.15717226,157.19,157.15,14.55323422]
[1762457056399,2.15717226,157.19,157.16,0.67]
[1762457056799,8.51898738,157.19,157.16,0.67]
[1762457057030,2.15717226,157.19,157.16,7.03293415]
[1762457057317,2.15717226,157.19,157.14,15.90938017]
[1762457057318,2.15717226,157.17,157.12,7.03424709]
[1762457057478,0.59,157.18,157.12,14.55424709]
[1762457057479,2.15717226,157.15,157.12,14.55424709]
[1762457057998,9.78882769,157.17,157.13,0.67]
[1762457058170,0.59,157.18,157.13,0.67]
[1762457058390,2.15717226,157.19,157.13,2.82717226]
[1762457058610,2.15717226,157.18,157.13,0.67]
[1762457058911,13.88147314,157.2,157.15,8.52051938]
[1762457058912,7.52,157.2,157.15,8.52051938]
[1762457059097,9.67717226,157.22,157.16,2.15717226]
[1762457059419,2.15717226,157.23,157.17,2.15717226]
[1762457059620,2.15717226,157.23,157.18,7.52]
[1762457059826,2.15717226,157.23,157.18,8.19]
[1762457060126,2.15717226,157.23,157.19,0.67]
[1762457060295,5.05322779,157.23,157.19,0.67]
[1762457060622,5.05322779,157.25,157.19,5.72322779]
[1762457060824,12.57322779,157.26,157.21,6.36091851]
[1762457060999,12.57322779,157.26,157.21,14.55091851]
[1762457061512,5.05322779,157.27,157.22,0.67]
[1762457061824,5.05322779,157.27,157.22,5.72322779]
[1762457062001,5.05322779,157.27,157.22,0.67]
[1762457062317,5.64322779,157.27,157.22,0.67]
[1762457062705,5.05322779,157.27,157.22,0.67]
[1762457062899,5.05322779,157.26,157.21,23.42229629]
[1762457063096,5.05322779,157.25,157.22,6.36043092]
[1762457063301,5.05322779,157.27,157.22,22.95171574]
[1762457063598,12.57322779,157.29,157.24,5.05322779]
[1762457063919,107.95322779,157.32,157.27,5.05322779]
[1762457064121,107.95322779,157.32,157.25,8.21]
[1762457064423,107.95322779,157.32,157.26,0.69]
[1762457064893,5.05322779,157.3,157.25,12.57322779]
[1762457065089,5.05322779,157.3,157.25,13.26322779]
[1762457065495,5.05322779,157.3,157.26,6.35875287]
[1762457065496,5.05322779,157.29,157.26,6.35875287]
[1762457066000,5.05322779,157.29,157.25,14.56922981]
[1762457066415,5.05322779,157.3,157.25,35.52070879]
[1762457066607,5.05322779,157.29,157.25,30.467481]
[1762457067822,5.05322779,157.28,157.25,13.87922981]
[1762457068021,5.05322779,157.28,157.24,6.3593706]
[1762457068325,5.05322779,157.28,157.24,14.5693706]
[1762457068694,5.05322779,157.27,157.24,13.8793706]
[1762457068897,5.05322779,157.27,157.24,14.5693706]
[1762457071007,6.3581501,157.28,157.24,14.5693706]
[1762457071008,5.05322779,157.28,157.24,14.5693706]
[1762457072916,5.05322779,157.29,157.25,7.04896575]
[1762457073227,12.00096326,157.29,157.25,6.35896575]
[1762457073432,102.9,157.28,157.25,6.35896575]
[1762457073615,107.95322779,157.28,157.24,14.56958251]
[1762457074008,108.54322779,157.28,157.24,14.56958251]
[1762457074217,107.95322779,157.28,157.24,14.56958251]
[1762457075317,114.90141851,157.28,157.24,14.56958251]
[1762457076033,108.54322779,157.27,157.24,7.52]
[1762457076210,108.54322779,157.27,157.22,34.4722466]
[1762457076402,108.54322779,157.27,157.22,35.1622466]
[1762457076602,108.54322779,157.27,157.23,0.69]
[1762457076918,11.41252826,157.25,157.22,7.52]
[1762457077308,12.00252826,157.25,157.22,7.52]
[1762457077516,5.64322779,157.25,157.22,7.52]
[1762457077946,5.64322779,157.24,157.19,6.36162924]
[1762457078150,5.05322779,157.23,157.19,13.88162924]
[1762457078307,9.78882769,157.22,157.19,7.52]
[1762457078513,5.05322779,157.21,157.17,0.7]
[1762457078731,5.64322779,157.21,157.17,7.06242172]
[1762457079515,5.64322779,157.2,157.16,13.88281948]
[1762457079927,5.64322779,157.2,157.16,14.58281948]
[1762457080430,5.05322779,157.2,157.16,14.58281948]
[1762457080734,5.05322779,157.2,157.16,8.22]
[1762457080942,11.41457744,157.2,157.16,8.22]
[1762457081143,5.05322779,157.2,157.16,14.58284276]
[1762457082433,7.94413611,157.2,157.16,14.58284276]
[1762457082630,16.73853259,157.24,157.17,8.64413611]
[1762457082833,17.7329638,157.22,157.17,0.7]
[1762457083029,24.09364583,157.22,157.17,7.06216265]
[1762457083339,7.94413611,157.21,157.17,7.06216265]
[1762457083522,7.94413611,157.21,157.17,0.7]
[1762457083730,7.94413611,157.2,157.17,0.7]
[1762457084235,7.94413611,157.2,157.16,13.88278032]
[1762457084547,3.37016856,157.2,157.16,7.06278032]
[1762457084733,106.27016856,157.19,157.15,7.52]
[1762457085124,113.22212431,157.19,157.15,13.88303035]
[1762457085329,109.85195575,157.19,157.15,14.58303035]
[1762457085530,109.26195575,157.19,157.15,14.58303035]
[1762457085733,102.9,157.19,157.16,0.7]
[1762457086247,3.96016856,157.18,157.15,7.52]
[1762457086418,13.15899625,157.16,157.1,0.7]
[1762457086740,3.37016856,157.15,157.1,14.58537237]
[1762457086920,3.37016856,157.15,157.1,35.17737237]
[1762457087124,9.73392062,157.14,157.11,0.7]
[1762457087321,3.37016856,157.14,157.11,7.06495582]
[1762457087524,10.32361684,157.15,157.11,7.06495582]
[1762457087718,9.73361684,157.15,157.11,7.06495582]
[1762457088121,3.37016856,157.14,157.11,7.06495582]
[1762457088448,9.78882769,157.13,157.1,13.88530492]
[1762457088622,13.15899625,157.13,157.1,13.88530492]
[1762457088830,13.15899625,157.13,157.1,14.58530492]
[1762457089441,13.15899625,157.13,157.1,14.58528083]
[1762457089636,9.78882769,157.13,157.1,14.58528083]
[1762457089840,3.37016856,157.15,157.1,13.88528083]
[1762457090047,3.37016856,157.15,157.11,0.7]
[1762457090250,9.7335334,157.15,157.11,0.7]
[1762457090451,3.37016856,157.14,157.11,0.7]
[1762457090646,3.37016856,157.13,157.1,13.88528083]
[1762457090846,3.37016856,157.13,157.1,7.52]
[1762457091041,3.96016856,157.12,157.08,13.88613676]
[1762457091354,10.32477393,157.12,157.08,13.88613676]
[1762457091539,3.37016856,157.11,157.08,8.22]
[1762457091742,3.37016856,157.11,157.08,0.7]
[1762457092147,3.37016856,157.12,157.08,7.0661136]
[1762457092939,3.37016856,157.12,157.09,0.67]
[1762457093528,3.37016856,157.1,157.07,0.2]
[1762457093728,3.37016856,157.09,157.07,0.2]
[1762457093952,3.37016856,157.09,157.07,0.87]
[1762457094332,102.9,157.11,157.07,0.87]
[1762457094534,3.37016856,157.1,157.07,0.87]
[1762457095339,3.37016856,157.1,157.07,7.23654101]
[1762457095524,3.37016856,157.1,157.07,0.87]
[1762457096152,3.37016856,157.1,157.07,7.23646847]
[1762457098962,106.27016856,157.11,157.08,0.67]
[1762457099257,102.9,157.11,157.08,0.67]
[1762457099677,3.37016856,157.1,157.07,6.56646847]
[1762457099848,3.37016856,157.1,157.07,7.23646847]
[1762457100044,3.37016856,157.1,157.07,6.56646847]
[1762457100351,102.9,157.11,157.08,4.04016856]
[1762457100663,102.9,157.11,157.09,7.52]
[1762457100851,102.9,157.11,157.09,8.19]
[1762457101766,106.27016856,157.11,157.09,14.55547655]
[1762457102246,102.9,157.11,157.09,14.55547655]
[1762457102769,102.9,157.19,157.1,4.04016856]
[1762457102959,3.37016856,157.21,157.12,23.96216856]
[1762457103264,3.37016856,157.13,157.1,8.19]
[1762457103470,3.37016856,157.12,157.08,6.36612619]
[1762457103670,13.15899625,157.13,157.08,13.88612619]
[1762457103861,3.37016856,157.14,157.1,6.36537237]
[1762457104271,3.37016856,157.12,157.09,6.36570242]
[1762457104473,3.37016856,157.12,157.08,13.88610313]
[1762457104653,13.15899625,157.13,157.09,0.67]
[1762457105272,3.96016856,157.12,157.08,7.52]
[1762457105483,3.37016856,157.11,157.08,7.52]
[1762457105786,3.37016856,157.12,157.08,8.19]
[1762457106067,16.74327372,157.13,157.08,8.19]
[1762457106068,21.26899625,157.13,157.09,0.67]
[1762457106373,21.26899625,157.13,157.08,14.55613164]
[1762457106576,27.63330712,157.13,157.08,14.55613164]
[1762457106948,9.78882769,157.13,157.09,0.67]
[1762457107162,13.15899625,157.13,157.09,0.67]
[1762457107961,0.59,157.12,157.08,13.8858784]
[1762457108157,102.9,157.12,157.08,7.52]
[1762457108353,106.27016856,157.12,157.08,7.52]
[1762457108669,102.9,157.12,157.09,0.67]
[1762457109182,102.9,157.12,157.09,4.04016856]
[1762457109486,102.9,157.12,157.09,0.67]
[1762457109689,102.9,157.12,157.1,0.67]
[1762457109888,6.36144812,157.2,157.12,22.2759674]
[1762457110059,10.89016856,157.19,157.13,4.04016856]
[1762457110454,10.89016856,157.19,157.14,0.67]
[1762457110772,13.15899625,157.17,157.12,6.36456211]
[1762457110954,13.15899625,157.17,157.13,0.67]
[1762457111374,13.74899625,157.17,157.13,0.67]
[1762457111997,13.74899625,157.17,157.13,7.03391647]
[1762457112273,13.15899625,157.17,157.13,0.67]
[1762457112478,0.59,157.16,157.11,32.15216856]
[1762457112658,19.52155344,157.17,157.11,32.15216856]
[1762457112659,19.52155344,157.17,157.11,31.48216856]
[1762457112866,19.52155344,157.17,157.12,0.67]
[1762457113476,19.52155344,157.17,157.12,7.03456211]
[1762457113680,19.52155344,157.17,157.13,7.03400144]
[1762457114189,19.52155344,157.17,157.11,7.52]
[1762457114190,3.37016856,157.14,157.11,7.52]
[1762457114394,20.67899625,157.17,157.12,4.04016856]
[1762457114571,3.37016856,157.18,157.13,0.67]
[1762457115252,3.37016856,157.17,157.13,0.67]
[1762457115700,102.9,157.21,157.15,3.37016856]
[1762457115863,9.78882769,157.2,157.16,3.37016856]
[1762457116055,9.78882769,157.22,157.17,3.37016856]
[1762457116255,7.52,157.23,157.19,3.37016856]
[1762457116469,7.52,157.25,157.2,3.37016856]
[1762457116760,3.37016856,157.25,157.2,7.52]
[1762457116986,3.37016856,157.25,157.21,0.67]
[1762457117396,13.74899625,157.24,157.2,7.52]
[1762457117574,13.74899625,157.24,157.18,20.592]
[1762457117575,3.37016856,157.22,157.18,20.592]
[1762457118079,3.37016856,157.22,157.18,27.62395667]
[1762457118277,13.15899625,157.21,157.17,13.88239301]
[1762457118484,13.74899625,157.21,157.17,13.88239301]
[1762457118686,3.37016856,157.2,157.16,26.95490025]
[1762457118984,3.37016856,157.19,157.15,13.88304192]
[1762457119189,3.37016856,157.16,157.13,6.36411862]
[1762457119683,3.37016856,157.16,157.13,0.67]
[1762457119860,3.37016856,157.16,157.12,6.36456211]
[1762457120060,3.37016856,157.16,157.12,7.03456211]
[1762457120493,7.94802856,157.16,157.12,7.03456211]
[1762457120982,7.94802856,157.16,157.13,0.67]
[1762457121190,24.26108051,157.18,157.13,7.03387987]
[1762457121375,7.94802856,157.16,157.13,7.03387987]
[1762457121889,7.94802856,157.17,157.13,7.03387987]
[1762457122579,7.52,157.18,157.14,0.66]
[1762457122768,9.78882769,157.2,157.14,16.12802856]
[1762457122970,17.73685625,157.2,157.14,16.12802856]
[1762457123291,17.73685625,157.21,157.16,6.36294222]
[1762457123684,7.94802856,157.2,157.16,7.02294222]
[1762457124265,7.94802856,157.2,157.17,0.66]
[1762457124587,110.84802856,157.21,157.17,0.66]
[1762457124775,9.78882769,157.24,157.19,7.94802856]
[1762457125173,24.09664177,157.24,157.19,6.36172784]
[1762457125375,24.68664177,157.24,157.19,7.02172784]
[1762457125774,9.78882769,157.24,157.2,0.66]
[1762457126195,9.78882769,157.24,157.2,8.60802856]
[1762457126395,31.61507791,157.28,157.22,7.94802856]
[1762457126567,31.61507791,157.28,157.21,7.52]
[1762457126568,9.78882769,157.24,157.21,8.18]
[1762457127486,9.78882769,157.25,157.22,6.36051392]
[1762457127687,8.53802856,157.24,157.21,7.52]
[1762457128082,18.32685625,157.23,157.21,7.52]
[1762457128279,7.94802856,157.22,157.16,8.60802856]
[1762457128473,7.94802856,157.22,157.13,16.57004648]
[1762457128474,7.94802856,157.19,157.13,16.57004648]
[1762457128689,7.94802856,157.19,157.13,24.51807504]
[1762457128983,17.73685625,157.2,157.14,8.60802856]
[1762457129366,17.73685625,157.2,157.14,30.22116079]
[1762457129587,24.09826018,157.2,157.15,0.66]
[1762457130099,9.78882769,157.18,157.14,6.36375206]
[1762457130471,9.78882769,157.18,157.14,7.02375206]
[1762457130672,17.73685625,157.18,157.14,0.66]
[1762457131989,17.73685625,157.18,157.14,7.02373314]
[1762457132296,6.36145521,157.2,157.14,14.9717617]
[1762457132596,16.14988361,157.21,157.16,7.94802856]
[1762457132798,9.78882769,157.21,157.16,7.94802856]
[1762457132978,17.73685625,157.21,157.15,15.46802856]
[1762457133178,17.73685625,157.21,157.16,0.66]
[1762457133179,24.09781011,157.21,157.16,0.66]
[1762457133704,124.72857456,157.22,157.16,8.60802856]
[1762457133998,7.94802856,157.2,157.16,6.36259401]
[1762457134586,7.94802856,157.2,157.15,13.88325478]
[1762457134788,7.94802856,157.2,157.16,0.66]
[1762457134988,17.73685625,157.21,157.16,0.66]
[1762457135598,14.30935171,157.2,157.15,13.88325478]
[1762457135781,7.94802856,157.18,157.15,7.52]
[1762457136100,7.94802856,157.16,157.12,7.52]
[1762457136407,7.94802856,157.18,157.13,0.66]
[1762457136781,7.94802856,157.17,157.13,0.66]
[1762457137201,7.94802856,157.17,157.12,7.52]
[1762457137202,7.94802856,157.16,157.12,7.52]
[1762457137399,7.94802856,157.14,157.09,0.72]
[1762457137599,7.94802856,157.12,157.07,14.08632935]
[1762457137790,7.94802856,157.12,157.08,0.72]
[1762457138383,7.94802856,157.11,157.07,14.08632935]
[1762457138589,7.94802856,157.11,157.07,14.80632935]
[1762457138788,17.73685625,157.12,157.07,14.08632935]
[1762457139085,7.94802856,157.11,157.07,14.80632935]
[1762457139308,7.94802856,157.11,157.08,0.72]
[1762457139691,24.10165591,157.12,157.08,0.72]
[1762457140582,7.94802856,157.12,157.08,7.08617606]
[1762457140781,21.83224793,157.13,157.08,7.08617606]
[1762457141007,21.83224793,157.13,157.08,6.36617606]
[1762457141208,21.83224793,157.13,157.09,0.72]
[1762457141994,14.31271932,157.12,157.09,0.72]
[1762457142897,14.31271932,157.12,157.08,6.36617606]
[1762457143205,14.31271932,157.12,157.08,0.72]
[1762457143505,14.31271932,157.12,157.09,0.72]
[1762457143715,117.21271932,157.12,157.09,0.72]
[1762457144211,102.9,157.12,157.09,0.72]
[1762457144786,102.9,157.12,157.09,5.78014729]
[1762457145114,107.96014729,157.17,157.11,5.06014729]
[1762457145287,107.96014729,157.17,157.12,7.08456211]
[1762457145288,5.06014729,157.16,157.12,7.08456211]
[1762457146211,5.06014729,157.15,157.11,6.36496713]
[1762457146407,5.06014729,157.15,157.11,7.08496713]
[1762457146712,5.65014729,157.14,157.1,13.88523481]
[1762457146893,12.58014729,157.16,157.11,0.72]
[1762457147209,21.21228572,157.16,157.11,7.08479154]
[1762457147406,5.06014729,157.15,157.11,7.08479154]
[1762457147603,5.06014729,157.14,157.11,0.72]
[1762457148117,5.06014729,157.14,157.1,13.88521592]
[1762457148291,5.06014729,157.14,157.1,14.60521592]
[1762457148692,5.06014729,157.14,157.11,0.72]
[1762457148892,11.42393237,157.14,157.1,13.88521592]
[1762457149093,11.42393237,157.14,157.1,14.60521592]
[1762457149621,102.9,157.13,157.1,14.60521592]
[1762457150515,102.9,157.13,157.1,13.88521592]
[1762457151002,102.9,157.13,157.11,0.72]
[1762457153014,102.9,157.13,157.12,6.36456211]
[1762457153315,102.9,157.13,157.11,7.08484875]
[1762457154114,102.9,157.13,157.11,0.72]
[1762457154413,102.9,157.13,157.11,0.66]
[1762457155117,102.9,157.13,157.11,7.02477131]
[1762457155417,102.9,157.13,157.12,0.66]
[1762457155811,102.9,157.13,157.11,7.02477131]
[1762457156704,102.9,157.13,157.11,6.36477131]
[1762457157019,102.9,157.13,157.11,7.02477131]
[1762457157803,102.9,157.13,157.12,0.66]
[1762457157996,102.9,157.13,157.11,7.02477131]
[1762457158193,102.9,157.13,157.1,13.88520163]
[1762457158526,102.9,157.13,157.1,8.18]
[1762457159025,102.9,157.13,157.1,14.54535696]
[1762457161136,102.9,157.13,157.1,13.88535696]
[1762457161137,112.01280336,157.13,157.1,13.88535696]
[1762457161300,105.64863637,157.13,157.1,13.88535478]
[1762457161621,9.65863637,157.15,157.11,0.66]
[1762457161921,10.24863637,157.15,157.1,29.79878571]
[1762457162216,8.09,157.15,157.1,30.45878571]
[1762457162408,8.09,157.15,157.11,0.66]
[1762457162724,7.5,157.15,157.11,0.66]
[1762457163527,7.5,157.15,157.12,6.36456211]
[1762457163723,12.53746406,157.16,157.12,6.36456211]
[1762457164027,102.9,157.19,157.15,22.75063637]
[1762457164226,9.78882769,157.21,157.16,9.65863637]
[1762457164425,2.15863637,157.17,157.1,50.0]
[1762457164735,2.15863637,157.12,157.08,0.66]
[1762457164902,10.58444859,157.11,157.07,0.2]
[1762457165108,2.15863637,157.1,157.07,0.2]
[1762457165326,7.5,157.12,157.07,7.22642362]
[1762457165536,9.78882769,157.12,157.07,16.88505999]
[1762457165748,2.15863637,157.11,157.08,0.66]
[1762457165902,2.15863637,157.11,157.07,14.06642362]
[1762457166241,2.15863637,157.11,157.07,14.72642362]
[1762457166540,9.65863637,157.13,157.08,0.66]
[1762457166746,2.15863637,157.12,157.08,0.66]
[1762457166912,2.15863637,157.1,157.07,14.06642362]
[1762457167103,2.15863637,157.1,157.07,14.72642362]
[1762457167315,2.15863637,157.1,157.07,14.06642362]
[1762457167532,2.15863637,157.1,157.07,6.56642362]
[1762457168007,2.15863637,157.1,157.07,7.22642362]
[1762457169443,2.15863637,157.1,157.07,0.2]
[1762457169444,2.15863637,157.08,157.07,0.2]
[1762457172915,9.65863637,157.09,157.07,0.2]
[1762457173116,2.15863637,157.09,157.07,0.2]
[1762457173820,2.15863637,157.08,157.07,0.2]
[1762457174229,11.94746406,157.09,157.07,0.2]
[1762457174817,2.15863637,157.08,157.07,0.2]
[1762457175709,11.94746406,157.09,157.07,0.2]